bitfinex/quotes_BTCUSD_20220304
["timestamp","ask_amount","ask_price","bid_price","bid_amount"]
[1646352885496,0.52033931,42339.0,42326.0,0.11823]
[1646352885795,0.0473,42338.0,42326.0,0.11823]
[1646352885995,0.106418,42338.0,42326.0,0.11823]
[1646352886195,0.106418,42338.0,42329.0,0.47655732]
[1646352886395,0.106418,42338.0,42330.0,0.059115]
[1646352886942,0.106418,42338.0,42329.0,0.47655732]
[1646352887445,0.0473,42338.0,42329.0,0.47655732]
[1646352887648,0.0473,42338.0,42331.0,0.11815588]
[1646352888147,0.0473,42338.0,42337.0,0.22532712]
[1646352888444,0.0473,42338.0,42336.0,0.17048453]
[1646352889444,0.0473,42338.0,42337.0,0.23373637]
[1646352889645,0.00184438,42340.0,42337.0,0.23373637]
[1646352890248,0.005,42338.0,42337.0,0.23373637]
[1646352890446,0.005,42338.0,42334.0,0.059109]
[1646352891496,0.00184438,42340.0,42334.0,0.23107127]
[1646352891695,0.00184438,42340.0,42334.0,0.43576585]
[1646352891898,0.00184438,42340.0,42331.0,0.11815588]
[1646352891899,0.04914438,42340.0,42331.0,0.11815588]
[1646352892099,0.3,42339.0,42331.0,0.11815588]
[1646352892297,0.04914438,42340.0,42331.0,0.11815588]
[1646352892497,0.06094438,42340.0,42331.0,0.11815588]
[1646352892800,0.08448438,42340.0,42331.0,0.11815588]
[1646352892997,0.07268438,42340.0,42331.0,0.11815588]
[1646352893197,0.04914438,42340.0,42333.0,0.16611127]
[1646352893798,0.3,42339.0,42329.0,0.118226]
[1646352893999,0.0473,42338.0,42329.0,0.118226]
[1646352894199,0.2032312,42334.0,42322.0,0.55402255]
[1646352894463,0.059122,42336.0,42330.0,0.059117]
[1646352894662,0.059122,42336.0,42331.0,0.17467673]
[1646352896162,0.062122,42336.0,42331.0,0.01480025]
[1646352896964,0.062122,42336.0,42332.0,0.01280904]
[1646352897165,0.21474711,42335.0,42333.0,0.01090222]
[1646352897366,0.062122,42336.0,42334.0,0.01125539]
[1646352897566,0.062122,42336.0,42329.0,0.059119]
[1646352897767,0.062122,42336.0,42330.0,0.01027192]
[1646352897970,0.059122,42336.0,42331.0,0.01005784]
[1646352898188,0.059122,42336.0,42332.0,0.01126234]
[1646352898395,0.2167446,42336.0,42332.0,0.01126234]
[1646352898595,0.2167446,42336.0,42325.0,0.15467282]
[1646352898596,0.2167446,42336.0,42333.0,0.01034038]
[1646352898794,0.0591,42335.0,42326.0,0.01082817]
[1646352899290,0.0591,42335.0,42325.0,0.15467282]
[1646352899291,0.3,42334.0,42327.0,0.22513041]
[1646352899492,0.0473,42333.0,42332.0,0.1875264]
[1646352899891,0.0473,42333.0,42332.0,0.19811396]
[1646352900291,0.0503,42333.0,42332.0,0.19811396]
[1646352900698,0.003,42333.0,42332.0,0.19811396]
[1646352901495,0.0118,42335.0,42332.0,0.19811396]
[1646352902145,0.0158,42335.0,42332.0,0.19811396]
[1646352902745,0.1158,42335.0,42332.0,0.19811396]
[1646352903147,0.4158,42335.0,42332.0,0.19811396]
[1646352903345,0.0473,42334.0,42332.0,0.19811396]
[1646352904448,0.1118,42335.0,42332.0,0.19811396]
[1646352904946,0.0118,42335.0,42332.0,0.19811396]
[1646352905550,0.0118,42335.0,42334.0,0.23193513]
[1646352905994,0.0118,42335.0,42334.0,0.01071949]
[1646352906194,0.0118,42335.0,42332.0,0.2019047]
[1646352906795,0.3867651,42339.0,42332.0,0.2610147]
[1646352906995,0.16365049,42340.0,42332.0,0.2610147]
[1646352906996,0.16365049,42340.0,42334.0,0.059105]
[1646352907197,0.16365049,42340.0,42339.0,0.21152303]
[1646352907198,0.00684438,42340.0,42339.0,0.21152303]
[1646352907396,0.00184438,42340.0,42339.0,0.21152303]
[1646352907795,0.00184438,42340.0,42339.0,0.50065644]
[1646352908199,0.16860611,42345.0,42340.0,0.65]
[1646352908200,0.16280611,42345.0,42340.0,0.65]
[1646352908402,0.006,42345.0,42340.0,0.709098]
[1646352908998,0.006,42345.0,42342.0,0.22115122]
[1646352909201,0.006,42345.0,42342.0,0.56048144]
[1646352909865,0.95327121,42349.0,42344.0,0.059096]
[1646352910366,0.95327121,42349.0,42342.0,0.44230244]
[1646352910367,0.007,42345.0,42342.0,0.44230244]
[1646352910765,0.17102056,42344.0,42342.0,0.44230244]
[1646352910969,0.007,42345.0,42342.0,0.44230244]
[1646352911565,0.05910418,42346.0,42342.0,0.44230244]
[1646352912068,0.05911,42344.0,42342.0,0.44230244]
[1646352912270,0.22048637,42343.0,42342.0,0.3980722]
[1646352912467,0.26398637,42343.0,42342.0,0.3980722]
[1646352912668,0.06704,42343.0,42342.0,0.3980722]
[1646352912868,0.16704,42343.0,42342.0,0.3980722]
[1646352913066,0.38164235,42343.0,42342.0,0.3980722]
[1646352913503,0.39343235,42343.0,42342.0,0.3980722]
[1646352913895,0.35254835,42343.0,42342.0,0.3980722]
[1646352914095,0.45254835,42343.0,42342.0,0.22115122]
[1646352914296,0.45254835,42343.0,42342.0,0.3980722]
[1646352914896,0.42900835,42343.0,42342.0,0.3980722]
[1646352915098,0.214406,42343.0,42342.0,0.3980722]
[1646352915297,0.114406,42343.0,42342.0,0.3980722]
[1646352915497,0.214406,42343.0,42342.0,0.3980722]
[1646352915900,0.6014063,42343.0,42342.0,0.3980722]
[1646352916105,0.3987903,42343.0,42342.0,0.3980722]
[1646352916301,0.3870003,42344.0,42342.0,0.3980722]
[1646352916501,0.3870003,42345.0,42342.0,0.17692098]
[1646352916945,0.3870003,42345.0,42344.0,0.22115122]
[1646352917249,0.3870003,42347.0,42344.0,0.22115122]
[1646352917445,0.3870003,42347.0,42344.0,0.2352847]
[1646352917755,0.16180611,42348.0,42347.0,0.01002515]
[1646352917756,0.3870003,42348.0,42347.0,0.01002515]
[1646352917946,0.3870003,42348.0,42344.0,0.22115122]
[1646352918246,0.56650611,42349.0,42348.0,0.25260179]
[1646352918247,0.95350641,42349.0,42348.0,0.25260179]
[1646352918446,0.95350641,42349.0,42347.0,0.059091]
[1646352918649,0.95350641,42349.0,42344.0,0.22115122]
[1646352919247,0.95350641,42349.0,42347.0,0.20047977]
[1646352919647,0.95350641,42349.0,42348.0,0.17692098]
[1646352920247,0.95850641,42349.0,42348.0,0.17692098]
[1646352921120,0.95850641,42349.0,42348.0,0.15922889]
[1646352921520,0.95350641,42349.0,42348.0,0.15922889]
[1646352921722,0.79601471,42349.0,42348.0,0.15922889]
[1646352921922,0.89601471,42349.0,42348.0,0.15922889]
[1646352922124,1.10649402,42349.0,42348.0,0.38038011]
[1646352922522,1.10649402,42349.0,42348.0,0.08038011]
[1646352922725,0.03688455,42348.0,42329.0,0.5]
[1646352922926,0.38716225,42340.0,42329.0,0.5]
[1646352923123,0.38716225,42338.0,42329.0,0.5]
[1646352923323,0.38716225,42336.0,42323.0,0.3048]
[1646352923622,0.18940256,42333.0,42326.0,0.18421879]
[1646352923826,0.3435,42332.0,42326.0,0.18421879]
[1646352924477,0.3435,42332.0,42318.0,0.239954]
[1646352924478,0.42618,42332.0,42318.0,0.239954]
[1646352924678,0.1,42331.0,42316.0,0.4151]
[1646352924871,0.0553,42330.0,42319.0,0.24734061]
[1646352925070,0.3,42329.0,42319.0,0.24734061]
[1646352925271,0.0553,42328.0,42319.0,0.24734061]
[1646352925771,0.0553,42328.0,42321.0,0.21139676]
[1646352926475,0.0593,42328.0,42321.0,0.21139676]
[1646352926672,0.1593,42328.0,42321.0,0.21139676]
[1646352927071,0.1593,42328.0,42316.0,0.4151]
[1646352927671,0.1553,42328.0,42316.0,0.4151]
[1646352927870,0.1553,42328.0,42319.0,0.059137]
[1646352928074,0.1553,42328.0,42320.0,0.01269688]
[1646352928697,0.2042767,42326.0,42320.0,0.01269688]
[1646352928894,0.2042767,42326.0,42318.0,0.20752548]
[1646352928895,0.17358118,42325.0,42318.0,0.20752548]
[1646352929098,0.49712118,42325.0,42321.0,0.0138321]
[1646352929299,0.12354,42324.0,42321.0,0.0138321]
[1646352929500,0.12354,42324.0,42307.0,0.01149844]
[1646352929501,0.0553,42323.0,42307.0,0.01149844]
[1646352929698,0.3,42322.0,42308.0,0.01367296]
[1646352929897,0.17671495,42316.0,42309.0,0.01029112]
[1646352930098,0.0435,42315.0,42310.0,0.01196865]
[1646352930298,0.63586995,42316.0,42307.0,0.18164325]
[1646352930497,0.63586995,42316.0,42312.0,0.01377024]
[1646352930498,0.0473,42315.0,42312.0,0.01377024]
[1646352930702,0.0473,42315.0,42310.0,0.059149]
[1646352930896,0.0118,42314.0,42310.0,0.059149]
[1646352931296,0.63586995,42316.0,42310.0,0.059149]
[1646352931297,0.0118,42315.0,42313.0,0.01164185]
[1646352931498,0.0591,42315.0,42311.0,0.01180452]
[1646352931947,0.0591,42315.0,42312.0,0.01061563]
[1646352932152,0.08264,42315.0,42306.0,0.01048382]
[1646352932352,0.18664,42315.0,42307.0,0.01227036]
[1646352932551,0.19358408,42314.0,42308.0,0.01179624]
[1646352932766,0.19358408,42314.0,42305.0,0.0021]
[1646352932767,0.02354,42312.0,42305.0,0.0001]
[1646352932950,0.02354,42310.0,42305.0,0.0001]
[1646352933150,0.08264,42309.0,42305.0,0.0001]
[1646352933351,0.18264,42309.0,42305.0,0.0001]
[1646352933550,0.21475348,42306.0,42305.0,0.0001]
[1646352933753,0.38264,42306.0,42305.0,0.0001]
[1646352934253,0.48264,42306.0,42305.0,0.0001]
[1646352934851,0.69731887,42306.0,42305.0,0.0001]
[1646352935896,0.69731887,42306.0,42299.0,0.0011]
[1646352935897,1.15,42305.0,42299.0,0.0006]
[1646352936100,1.15,42305.0,42299.0,0.01094918]
[1646352936101,0.0591,42304.0,42299.0,0.01094918]
[1646352936297,0.3,42303.0,42300.0,0.01096777]
[1646352936497,0.0473,42302.0,42301.0,0.01044624]
[1646352936698,0.1473,42302.0,42301.0,0.01044624]
[1646352937102,0.1473,42302.0,42297.0,0.0006]
[1646352937103,0.4473,42302.0,42297.0,0.0006]
[1646352937302,0.4473,42302.0,42294.0,0.0006]
[1646352937303,0.15534505,42295.0,42294.0,0.0006]
[1646352937502,0.20264505,42295.0,42294.0,0.0006]
[1646352937699,0.3473,42295.0,42294.0,0.0006]
[1646352937899,0.0473,42295.0,42294.0,0.0006]
[1646352938303,0.3473,42295.0,42294.0,0.0006]
[1646352938803,0.3473,42295.0,42292.0,0.0011]
[1646352938804,0.4473,42295.0,42292.0,0.0011]
[1646352939004,0.4473,42295.0,42290.0,0.0016]
[1646352939005,0.1,42294.0,42290.0,0.0016]
[1646352939303,0.0473,42293.0,42290.0,0.0016]
[1646352940046,0.0473,42293.0,42291.0,0.01333801]
[1646352940246,0.0473,42293.0,42290.0,0.0016]
[1646352941047,0.0473,42293.0,42292.0,0.01020758]
[1646352941246,0.0473,42293.0,42291.0,0.01244044]
[1646352941449,0.0473,42293.0,42290.0,0.0016]
[1646352941647,0.21183426,42292.0,42290.0,0.0016]
[1646352941847,0.0473,42291.0,42290.0,0.0016]
[1646352942252,0.3473,42291.0,42290.0,0.0016]
[1646352942452,0.4473,42291.0,42290.0,0.0016]
[1646352943313,0.4473,42291.0,42289.0,0.0043]
[1646352943314,0.51957,42291.0,42289.0,0.0032]
[1646352943514,0.41182,42290.0,42282.0,0.0011]
[1646352943717,0.0473,42289.0,42282.0,0.0011]
[1646352943917,0.18947381,42285.0,42282.0,0.0011]
[1646352944119,0.0473,42284.0,42282.0,0.0011]
[1646352944316,0.3473,42284.0,42282.0,0.0011]
[1646352944519,0.0473,42284.0,42282.0,0.01605625]
[1646352944718,0.0473,42284.0,42282.0,0.0011]
[1646352944919,0.0473,42284.0,42283.0,0.25015466]
[1646352945320,0.0473,42284.0,42283.0,0.55015466]
[1646352945717,0.42595285,42297.0,42283.0,0.25015466]
[1646352945925,0.0473,42293.0,42288.0,0.059176]
[1646352946118,0.5,42296.0,42291.0,0.21854001]
[1646352946316,0.22488,42298.0,42291.0,0.21854001]
[1646352946720,0.10647344,42298.0,42291.0,0.21854001]
[1646352946963,0.0473,42298.0,42291.0,0.21854001]
[1646352947166,0.01182,42298.0,42292.0,0.05917]
[1646352947365,0.01182,42301.0,42292.0,0.35917]
[1646352947766,0.05916751,42301.0,42292.0,0.3]
[1646352947963,0.05916751,42301.0,42291.0,0.21854001]
[1646352947964,0.01182,42300.0,42291.0,0.21854001]
[1646352948163,0.01182,42300.0,42298.0,0.27917605]
[1646352948763,0.12233751,42301.0,42291.0,0.3]
[1646352948963,0.12233751,42301.0,42290.0,0.05917]
[1646352949767,0.12233751,42301.0,42296.0,0.18854264]
[1646352949768,0.06316751,42301.0,42296.0,0.18854264]
[1646352949977,0.594751,42301.0,42296.0,0.18854264]
[1646352950177,0.594751,42301.0,42294.0,0.151]
[1646352950178,0.2,42297.0,42294.0,0.151]
[1646352950368,0.2,42297.0,42294.0,0.001]
[1646352950567,0.2,42297.0,42291.0,0.17454]
[1646352950804,0.25,42298.0,42291.0,0.17454]
[1646352950805,0.2,42295.0,42294.0,0.360029]
[1646352951002,0.2,42295.0,42293.0,0.24453058]
[1646352952206,0.2,42295.0,42291.0,0.001]
[1646352952506,0.2,42295.0,42290.0,0.001]
[1646352952507,0.45,42292.0,42290.0,0.001]
[1646352953106,0.2,42292.0,42290.0,0.001]
[1646352953509,0.2,42292.0,42291.0,0.53621512]
[1646352953709,0.2,42292.0,42291.0,0.55975512]
[1646352955255,0.01182,42305.0,42293.0,0.02354]
[1646352955454,0.25,42308.0,42301.0,0.360029]
[1646352955651,0.25,42308.0,42301.0,0.6435639]
[1646352956053,0.25,42308.0,42303.0,0.15]
[1646352956251,0.25,42308.0,42304.0,0.360029]
[1646352956451,0.25,42308.0,42304.0,0.383569]
[1646352956853,0.05914,42310.0,42304.0,0.383569]
[1646352957055,0.118275,42311.0,42304.0,0.383569]
[1646352957257,0.3,42321.0,42306.0,0.383569]
[1646352957258,0.25,42318.0,42306.0,0.383569]
[1646352957760,0.25,42318.0,42310.0,0.05913199]
[1646352957954,0.5,42317.0,42310.0,0.08267199]
[1646352958202,0.25,42318.0,42310.0,0.08267199]
[1646352958406,0.4204661,42318.0,42310.0,0.02354]
[1646352958602,0.25,42318.0,42310.0,0.02354]
[1646352959708,0.16675882,42315.0,42305.0,0.17354]
[1646352959905,0.55,42318.0,42305.0,0.17354]
[1646352960106,0.25,42318.0,42305.0,0.17354]
[1646352960313,0.25,42318.0,42305.0,0.0876728]
[1646352960510,0.25,42318.0,42305.0,0.005]
[1646352960511,0.25,42307.0,42305.0,0.005]
[1646352961208,0.05915,42308.0,42305.0,0.005]
[1646352961505,0.05915,42308.0,42306.0,0.1817754]
[1646352961506,0.25,42307.0,42306.0,0.1817754]
[1646352961958,0.05915,42308.0,42306.0,0.1817754]
[1646352962161,0.3,42314.0,42307.0,0.360029]
[1646352962362,0.3,42314.0,42306.0,0.38885737]
[1646352962363,0.061135,42312.0,42306.0,0.38885737]
[1646352963362,0.061135,42312.0,42309.0,0.360029]
[1646352963563,0.002,42312.0,42309.0,0.383569]
[1646352963761,0.059129,42317.0,42312.0,0.02354]
[1646352963960,0.059129,42317.0,42314.0,0.21109503]
[1646352964162,0.118254,42321.0,42315.0,0.360029]
[1646352964362,0.118254,42321.0,42314.0,0.23463503]
[1646352964363,0.118254,42321.0,42317.0,0.360029]
[1646352964560,0.5,42325.0,42317.0,0.360029]
[1646352964561,0.05912,42322.0,42317.0,0.360029]
[1646352965468,0.05912,42322.0,42321.0,0.28676903]
[1646352965707,0.05912,42322.0,42311.0,0.15]
[1646352966601,0.05912,42322.0,42319.0,0.21017919]
[1646352966802,0.25,42323.0,42311.0,0.15]
[1646352967001,0.25,42323.0,42315.0,0.17316125]
[1646352967405,0.0118,42326.0,42317.0,0.383569]
[1646352967608,0.559122,42330.0,42317.0,0.383569]
[1646352967609,0.559122,42330.0,42322.0,0.02354]
[1646352967610,0.5,42330.0,42322.0,0.02354]
[1646352967903,0.5,42330.0,42325.0,0.360029]
[1646352968108,0.5,42330.0,42322.0,0.07084]
[1646352968302,0.5,42330.0,42329.0,0.20942111]
[1646352968503,0.5,42330.0,42322.0,0.07084]
[1646352968704,0.5,42330.0,42322.0,0.0473]
[1646352969105,0.118255,42330.0,42322.0,0.0473]
[1646352969303,0.25,42328.0,42322.0,0.0473]
[1646352969950,0.25,42328.0,42322.0,0.25040645]
[1646352970151,0.25,42328.0,42322.0,0.0473]
[1646352971154,0.55,42328.0,42322.0,0.0473]
[1646352971356,0.25,42328.0,42318.0,0.18453934]
[1646352971556,0.25,42326.0,42320.0,0.22718059]
[1646352972356,0.25,42328.0,42320.0,0.23218059]
[1646352972757,0.25,42326.0,42320.0,0.005]
[1646352972957,0.3,42327.0,42320.0,0.005]
[1646352972958,0.25,42323.0,42320.0,0.005]
[1646352973205,0.16650411,42321.0,42320.0,0.005]
[1646352973607,0.25,42323.0,42320.0,0.005]
[1646352974108,0.25,42320.0,42316.0,0.18042652]
[1646352974709,0.25,42320.0,42305.0,0.2628]
[1646352974909,0.25,42318.0,42305.0,0.15]
[1646352975110,0.059141,42319.0,42305.0,0.15]
[1646352975509,0.070941,42319.0,42305.0,0.15]
[1646352975710,0.19670903,42315.0,42305.0,0.15]
[1646352975910,0.070941,42319.0,42312.0,0.21585833]
[1646352976709,0.25,42318.0,42312.0,0.21585833]
[1646352976960,0.15608827,42317.0,42312.0,0.21585833]
[1646352977554,0.15608827,42317.0,42303.0,0.3]
[1646352978354,0.15608827,42317.0,42303.0,0.305]
[1646352978558,0.15608827,42317.0,42311.0,0.21799199]
[1646352979356,0.25,42308.0,42303.0,0.005]
[1646352979559,0.25,42306.0,42303.0,0.005]
[1646352979758,0.25,42306.0,42293.0,0.52301726]
[1646352979759,0.17164384,42305.0,42294.0,0.3063]
[1646352979955,0.17164384,42305.0,42293.0,0.52301726]
[1646352979956,0.25,42302.0,42293.0,0.52301726]
[1646352980353,0.25,42302.0,42296.0,0.18388744]
[1646352980556,0.01182,42303.0,42296.0,0.17388744]
[1646352980999,0.0473,42303.0,42300.0,0.23201906]
[1646352982000,0.25,42306.0,42300.0,0.23201906]
[1646352982202,0.0473,42309.0,42300.0,0.23201906]
[1646352982400,0.0473,42309.0,42300.0,0.23501906]
[1646352982401,0.21017431,42308.0,42300.0,0.23501906]
[1646352982602,0.25,42307.0,42300.0,0.23501906]
[1646352983100,0.002,42308.0,42303.0,0.21066264]
[1646352983706,0.0473,42309.0,42303.0,0.21066264]
[1646352984202,0.0473,42309.0,42297.0,0.3]
[1646352984203,0.17897954,42308.0,42297.0,0.3]
[1646352984451,0.17897954,42308.0,42298.0,0.002]
[1646352984653,0.25,42303.0,42298.0,0.002]
[1646352984856,0.2973,42303.0,42298.0,0.002]
[1646352985051,0.2473,42303.0,42298.0,0.002]
[1646352985251,0.2473,42303.0,42298.0,0.18916514]
[1646352985650,0.2473,42303.0,42298.0,0.18716514]
[1646352985849,0.2473,42303.0,42298.0,0.18716136]
[1646352986254,0.2473,42303.0,42293.0,0.52301726]
[1646352986255,0.23127866,42302.0,42293.0,0.52301726]
[1646352986459,0.2520917,42294.0,42293.0,0.52301726]
[1646352986652,0.2,42296.0,42293.0,0.52301726]
[1646352986653,0.3,42295.0,42293.0,0.52301726]
[1646352987252,0.2,42294.0,42293.0,0.52301726]
[1646352987751,0.22354,42296.0,42293.0,0.52301726]
[1646352987952,0.32354,42295.0,42293.0,0.52301726]
[1646352988210,0.32354,42294.0,42293.0,0.52301726]
[1646352988407,0.63536,42294.0,42293.0,0.52301726]
[1646352988608,0.88874984,42294.0,42293.0,0.52301726]
[1646352988811,0.97017984,42294.0,42293.0,0.52301726]
[1646352989413,1.02936184,42294.0,42293.0,0.52301726]
[1646352989809,1.01754184,42294.0,42293.0,0.52301726]
[1646352990410,1.02154184,42294.0,42293.0,0.52301726]
[1646352990611,1.03336184,42294.0,42293.0,0.52301726]
[1646352991212,0.74455,42294.0,42293.0,0.52301726]
[1646352991415,0.66312,42294.0,42293.0,0.52301726]
[1646352991811,0.65912,42294.0,42293.0,0.52301726]
[1646352992251,0.25912,42294.0,42293.0,0.52301726]
[1646352992851,0.27084,42294.0,42293.0,0.52301726]
[1646352993051,0.57084,42294.0,42293.0,0.52301726]
[1646352993255,0.90578674,42294.0,42293.0,0.52301726]
[1646352993653,1.11441926,42294.0,42293.0,0.52301726]
[1646352994056,0.87947252,42294.0,42293.0,0.52301726]
[1646352995453,0.86765252,42294.0,42293.0,0.52301726]
[1646352996496,0.88347252,42294.0,42293.0,0.52301726]
[1646352997098,0.68666,42294.0,42293.0,0.52301726]
[1646352997698,0.68266,42294.0,42293.0,0.52301726]
[1646352998097,0.85046964,42294.0,42293.0,0.52301726]
[1646352998498,0.85446964,42294.0,42293.0,0.52301726]
[1646352998799,0.2513,42294.0,42293.0,0.52301726]
[1646352998999,0.204,42294.0,42293.0,0.52301726]
[1646352999200,0.004,42294.0,42293.0,0.52301726]
[1646352999649,0.5,42295.0,42293.0,0.52301726]
[1646352999853,0.17828595,42294.0,42293.0,0.52301726]
[1646353000251,0.282718,42295.0,42293.0,0.52301726]
[1646353001355,0.2123471,42294.0,42293.0,0.52301726]
[1646353001651,0.5123471,42294.0,42293.0,0.52301726]
[1646353002250,0.3,42294.0,42293.0,0.52301726]
[1646353002449,0.303,42294.0,42293.0,0.52301726]
[1646353002650,0.32654,42294.0,42293.0,0.52301726]
[1646353003702,0.53203984,42294.0,42293.0,0.52301726]
[1646353004304,0.63203984,42294.0,42293.0,0.05390512]
[1646353004506,0.69115984,42294.0,42293.0,0.05390512]
[1646353004707,0.83974236,42294.0,42293.0,0.05390512]
[1646353004903,0.83974236,42294.0,42293.0,0.04890512]
[1646353006506,0.84274236,42294.0,42293.0,0.04890512]
[1646353007862,1.01733136,42294.0,42293.0,0.04890512]
[1646353008261,1.01733136,42294.0,42293.0,0.02598084]
[1646353008464,1.73323136,42294.0,42293.0,0.02598084]
[1646353011201,0.2,42292.0,42290.0,0.00099999]
[1646353011402,0.3473,42291.0,42290.0,0.00099999]
[1646353011803,0.4473,42291.0,42290.0,0.00099999]
[1646353012202,1.0973,42291.0,42290.0,0.00099999]
[1646353012405,1.0973,42291.0,42289.0,0.001]
[1646353012608,1.0973,42291.0,42276.0,0.001]
[1646353012609,0.2,42284.0,42276.0,0.001]
[1646353012806,0.2,42284.0,42272.0,0.001]
[1646353012807,0.15813462,42279.0,42272.0,0.001]
[1646353013009,0.37354,42276.0,42272.0,0.001]
[1646353013306,0.37354,42276.0,42254.0,0.00011526]
[1646353013307,0.2,42271.0,42254.0,0.00011526]
[1646353013508,0.3473,42270.0,42254.0,0.00011526]
[1646353013707,0.3473,42270.0,42255.0,0.03646227]
[1646353013906,0.3473,42270.0,42260.0,0.28304554]
[1646353014206,0.3473,42270.0,42260.0,0.01075851]
[1646353014453,0.3473,42270.0,42254.0,0.01447207]
[1646353014454,0.5,42269.0,42254.0,0.01447207]
[1646353014755,0.07084,42268.0,42254.0,0.00011526]
[1646353014961,0.07084,42268.0,42250.0,0.0022]
[1646353014962,0.35,42256.0,42250.0,0.0022]
[1646353015157,0.318494,42252.0,42250.0,0.0022]
[1646353015353,0.4473,42251.0,42250.0,0.0022]
[1646353015557,0.13743,42251.0,42250.0,0.0022]
[1646353015855,0.0473,42251.0,42250.0,0.0022]
[1646353016054,0.4996858,42256.0,42249.0,0.0004]
[1646353016253,0.4996858,42256.0,42247.0,0.0033]
[1646353016456,0.606532,42255.0,42247.0,0.0033]
[1646353016654,0.0473,42254.0,42247.0,0.0033]
[1646353016854,0.21203287,42253.0,42247.0,0.0033]
[1646353017056,0.3473,42252.0,42247.0,0.0033]
[1646353017254,0.465782,42252.0,42247.0,0.0033]
[1646353017655,0.165782,42252.0,42247.0,0.0033]
[1646353018308,0.465782,42252.0,42247.0,0.0033]
[1646353018508,0.01183,42251.0,42247.0,0.0033]
[1646353018709,0.07084,42250.0,42247.0,0.0033]
[1646353018909,0.32354,42249.0,42247.0,0.0033]
[1646353019108,0.37084,42249.0,42247.0,0.0033]
[1646353019307,0.3,42248.0,42247.0,0.0033]
[1646353019512,0.3,42248.0,42246.0,0.0011]
[1646353019513,0.47084,42248.0,42246.0,0.0011]
[1646353019713,0.41183,42247.0,42246.0,0.0011]
[1646353019910,0.45913,42247.0,42246.0,0.0011]
[1646353020608,0.46513,42247.0,42246.0,0.0011]
[1646353021008,0.16513,42247.0,42246.0,0.0011]
[1646353021209,0.46513,42247.0,42246.0,0.0011]
[1646353021810,0.15913,42247.0,42246.0,0.0011]
[1646353022061,0.65913,42247.0,42246.0,0.0011]
[1646353022260,0.98267,42247.0,42246.0,0.0011]
[1646353022661,0.98967,42247.0,42246.0,0.0011]
[1646353022866,0.9543,42247.0,42246.0,0.0011]
[1646353023263,0.97784,42247.0,42246.0,0.0011]
[1646353023462,1.13483134,42247.0,42246.0,0.0011]
[1646353023669,0.97784,42247.0,42246.0,0.0011]
[1646353023862,1.13483134,42247.0,42246.0,0.0011]
[1646353024065,0.9543,42247.0,42246.0,0.0011]
[1646353024263,1.13483134,42247.0,42246.0,0.0011]
[1646353024467,0.9473,42247.0,42242.0,0.0011]
[1646353024667,0.9473,42247.0,42230.0,0.0011]
[1646353024668,0.2,42238.0,42230.0,0.0011]
[1646353024866,0.3473,42237.0,42230.0,0.0011]
[1646353025064,0.3,42236.0,42230.0,0.0011]
[1646353025267,0.05913,42235.0,42230.0,0.0011]
[1646353025467,0.05913,42235.0,42234.0,0.16505505]
[1646353025725,0.39635118,42242.0,42234.0,0.16505505]
[1646353025726,0.15699134,42240.0,42234.0,0.01330033]
[1646353025914,0.5,42238.0,42234.0,0.0011]
[1646353026114,0.5,42238.0,42236.0,0.01478139]
[1646353026316,0.059249,42243.0,42236.0,0.01478139]
[1646353026515,0.059249,42243.0,42236.0,0.06056009]
[1646353026516,0.21624034,42243.0,42236.0,0.06056009]
[1646353026714,0.059249,42243.0,42237.0,0.20659307]
[1646353027017,0.059249,42243.0,42234.0,0.0011]
[1646353027018,0.02354,42241.0,42234.0,0.0011]
[1646353027216,0.059261,42238.0,42234.0,0.0011]
[1646353027416,0.0473,42237.0,42234.0,0.0011]
[1646353027615,0.03683,42241.0,42234.0,0.0011]
[1646353027616,0.0473,42236.0,42234.0,0.0011]
[1646353027816,0.03683,42241.0,42234.0,0.0009]
[1646353027817,0.0473,42237.0,42234.0,0.0009]
[1646353028022,0.0473,42237.0,42235.0,0.17440117]
[1646353028219,0.5,42243.0,42236.0,0.01103337]
[1646353028220,0.15699134,42242.0,42236.0,0.01103337]
[1646353028616,0.007,42242.0,42236.0,0.01103337]
[1646353029015,0.007,42242.0,42237.0,0.07749309]
[1646353029217,0.007,42242.0,42237.0,0.08803342]
[1646353029461,0.007,42242.0,42239.0,0.39662789]
[1646353029662,0.007,42242.0,42237.0,0.06449342]
[1646353029663,0.5,42248.0,42240.0,1.533569]
[1646353029866,0.35574524,42255.0,42240.0,1.533569]
[1646353029867,0.35574524,42255.0,42244.0,0.28530884]
[1646353030064,0.177687,42264.0,42246.0,0.02354]
[1646353030065,0.15699134,42261.0,42246.0,0.02354]
[1646353030263,0.5,42267.0,42259.0,0.18845067]
[1646353030264,0.15699134,42266.0,42259.0,0.18845067]
[1646353030467,0.01183,42265.0,42250.0,0.02354]
[1646353030767,0.01183,42265.0,42253.0,0.0113802]
[1646353031062,0.17751902,42263.0,42254.0,0.02354]
[1646353031262,0.01183,42262.0,42261.0,0.27325946]
[1646353031462,0.01183,42268.0,42256.0,0.21732799]
[1646353031660,0.01183,42268.0,42256.0,0.23136476]
[1646353032262,0.02471376,42267.0,42258.0,0.19430859]
[1646353032464,0.02471376,42267.0,42258.0,0.20432292]
[1646353032664,0.01383,42268.0,42258.0,0.20432292]
[1646353032864,0.02471376,42266.0,42258.0,0.20432292]
[1646353033062,0.02471376,42266.0,42259.0,0.05569314]
[1646353033310,0.02471376,42266.0,42259.0,0.02354]
[1646353033504,0.02471376,42266.0,42258.0,0.03502098]
[1646353033706,0.02451003,42266.0,42263.0,0.2146146]
[1646353034103,0.02451003,42266.0,42263.0,0.20483747]
[1646353034403,0.02451003,42266.0,42258.0,0.03502098]
[1646353034604,0.02451003,42266.0,42258.0,0.01148098]
[1646353035007,0.02451003,42266.0,42255.0,0.0473]
[1646353035008,0.29022019,42266.0,42255.0,0.23673806]
[1646353035207,0.02451003,42266.0,42255.0,0.23673806]
[1646353035407,0.02451003,42266.0,42256.0,0.18622111]